bitfinex/quotes_ETHUSD_20251117
["timestamp","ask_amount","ask_price","bid_price","bid_amount"]
[1763390134708,0.4925,3158.6,3156.2,0.90699264]
[1763390134709,0.4925,3158.6,3156.1,0.005]
[1763390134911,0.1963,3158.5,3156.1,0.005]
[1763390135125,0.405504,3158.4,3156.1,0.005]
[1763390135272,0.405504,3158.3,3156.1,0.005]
[1763390135693,0.4925,3158.2,3156.1,0.005]
[1763390135919,0.4925,3158.2,3156.3,0.90699264]
[1763390136209,0.4925,3158.2,3156.4,0.44054597]
[1763390136410,0.1963,3158.5,3156.4,0.44054597]
[1763390136612,0.1963,3158.5,3156.5,0.3301]
[1763390136820,0.005,3158.9,3156.6,0.405504]
[1763390137028,0.4925,3158.8,3156.5,0.3301]
[1763390137175,0.4917,3158.8,3156.5,0.3301]
[1763390137626,0.4917,3158.8,3156.5,3.498078]
[1763390137775,0.4917,3158.8,3156.6,0.3498078]
[1763390137979,0.4917,3158.8,3156.7,0.3309]
[1763390138522,0.005,3158.9,3156.7,0.3309]
[1763390138874,0.005,3158.9,3156.8,0.405504]
[1763390139077,0.005,3158.9,3156.7,0.3309]
[1763390139441,0.4925,3158.8,3156.8,0.15877004]
[1763390139574,0.005,3158.9,3157.0,0.90699264]
[1763390139777,0.005,3158.9,3157.2,0.405504]
[1763390139982,0.005,3158.9,3157.2,2.87672473]
[1763390140204,0.005,3158.9,3157.3,0.3309]
[1763390140478,0.005,3158.9,3157.4,0.18727597]
[1763390140977,0.005,3158.9,3157.4,0.51817597]
[1763390141378,0.005,3158.9,3157.5,0.3309]
[1763390141601,0.005,3158.9,3157.7,0.90699264]
[1763390141994,0.4925,3158.8,3157.4,0.18727597]
[1763390142196,0.4925,3158.8,3157.0,3.49846414]
[1763390142376,0.005,3158.9,3157.2,1.91973209]
[1763390142580,0.005,3158.9,3157.5,0.405504]
[1763390143031,0.005,3158.9,3158.8,0.06]
[1763390143533,0.005,3158.9,3157.6,3.16689699]
[1763390143678,0.005,3158.9,3157.7,0.47258875]
[1763390143877,0.005,3158.9,3157.7,0.44793936]
[1763390144229,0.4975,3158.9,3157.7,0.44793936]
[1763390144380,0.4975,3158.9,3156.7,6.33573034]
[1763390144584,0.4975,3158.9,3156.7,9.83449551]
[1763390144906,0.4975,3158.9,3156.9,1.56573942]
[1763390145314,0.4975,3158.9,3157.1,0.405504]
[1763390145492,0.005,3158.9,3157.4,1.97368916]
[1763390145695,0.005,3158.9,3158.8,0.06]
[1763390145882,0.005,3158.9,3158.5,0.06]
[1763390146403,0.005,3158.9,3158.0,0.3309]
[1763390146929,0.005,3158.9,3158.1,0.90699264]
[1763390147421,0.005,3158.9,3158.0,4.34552028]
[1763390147422,0.005,3159.9,3158.8,0.06]
[1763390147666,0.005,3159.9,3159.0,0.90699264]
[1763390148186,0.005,3159.9,3158.9,6.33131786]
[1763390148187,0.005,3159.9,3158.9,0.90699264]
[1763390148610,0.002,3159.3,3158.9,0.90699264]
[1763390148811,0.002,3159.3,3159.0,0.36255558]
[1763390149010,0.002,3159.3,3158.9,1.87425557]
[1763390149226,0.002,3159.3,3159.1,0.405504]
[1763390149422,0.002,3159.3,3159.2,0.736404]
[1763390149625,0.005,3159.9,3159.3,0.405504]
[1763390149822,0.005,3159.9,3159.3,1.64339664]
[1763390150031,0.005,3160.9,3159.7,5.677504]
[1763390150327,0.007,3161.9,3160.7,1.31249664]
[1763390150654,0.007,3161.9,3160.9,0.90699264]
[1763390150926,0.007,3161.9,3161.4,0.405504]
[1763390151231,0.007,3161.9,3161.8,0.1571]
[1763390151457,0.0012,3162.3,3161.8,0.1571]
[1763390151656,0.4925,3162.2,3161.0,0.90699264]
[1763390151959,0.4925,3162.2,3160.2,0.1571]
[1763390152259,0.4925,3162.2,3160.3,0.64860136]
[1763390152466,0.4925,3162.2,3160.1,1.38499264]
[1763390152666,0.4925,3162.2,3160.1,1.06409264]
[1763390152820,0.4925,3162.2,3160.1,0.1571]
[1763390153249,0.4925,3162.2,3160.2,0.90699264]
[1763390153445,0.4925,3162.2,3160.1,0.1571]
[1763390153645,0.4925,3162.2,3160.3,0.90699264]
[1763390153846,0.4925,3162.2,3160.4,0.7235706]
[1763390154030,0.4925,3162.2,3160.2,0.90699264]
[1763390154231,0.4925,3162.2,3160.1,6.49101364]
[1763390154232,0.4925,3162.2,3160.1,0.1621]
[1763390154518,0.4925,3162.2,3160.2,0.90699264]
[1763390155036,0.0012,3162.3,3160.3,0.726404]
[1763390155355,0.0012,3162.3,3160.2,0.90699264]
[1763390155356,0.0012,3162.3,3160.5,0.405504]
[1763390155717,0.0012,3162.3,3160.1,0.1621]
[1763390155968,0.0012,3162.3,3160.3,1.31249664]
[1763390156137,0.0012,3162.3,3160.2,6.64953235]
[1763390156138,0.4937,3162.3,3160.4,0.7962029]
[1763390156340,0.4937,3162.3,3160.2,0.90699264]
[1763390157678,0.4937,3162.3,3160.5,0.90699264]
[1763390158270,0.0012,3162.3,3160.7,0.405504]
[1763390158675,0.0012,3162.3,3160.9,0.405504]
[1763390158826,0.0012,3162.3,3160.9,0.90699264]
[1763390159023,0.0012,3162.3,3161.1,0.405504]
[1763390159421,0.0012,3162.3,3161.2,0.3209]
[1763390159625,0.0012,3162.3,3161.1,0.90699264]
[1763390159626,0.4531,3162.3,3161.1,0.90699264]
[1763390159974,0.0012,3162.3,3161.1,1.22789264]
[1763390160141,0.0012,3162.3,3161.2,0.726404]
[1763390160377,0.0004,3162.3,3162.2,0.1038]
[1763390160578,0.0004,3162.3,3161.3,0.1038]
[1763390160983,0.4519,3164.2,3161.9,0.405504]
[1763390161185,0.4519,3164.2,3162.1,1.31249664]
[1763390161504,0.1842,3164.5,3162.6,0.405504]
[1763390161814,0.6482,3164.8,3162.8,0.90699264]
[1763390161962,0.005,3164.9,3163.8,0.06]
[1763390162164,0.005,3164.9,3163.9,0.90699264]
[1763390162374,0.4519,3166.8,3166.0,0.1069]
[1763390162574,0.005,3166.9,3166.0,0.16025644]
[1763390163673,0.005,3166.9,3166.1,11.41013676]
[1763390163871,0.4519,3169.2,3167.0,0.405504]
[1763390164099,0.4519,3167.6,3166.6,0.90699264]
[1763390164406,0.1842,3168.7,3166.0,0.79941591]
[1763390164407,0.54273496,3167.5,3166.0,0.16025644]
[1763390164762,0.1842,3166.1,3164.1,0.055]
[1763390164959,0.1842,3166.1,3164.1,0.005]
[1763390165209,0.4519,3166.0,3164.1,0.005]
[1763390165499,0.4519,3166.0,3164.1,6.80200362]
[1763390165799,0.6361,3166.7,3164.5,1.54084611]
[1763390166008,0.6361,3166.7,3164.4,0.90699264]
[1763390166306,0.09083496,3167.5,3165.8,0.90699264]
[1763390166648,0.09083496,3167.5,3167.4,0.537504]
[1763390166800,10.0,3169.6,3167.5,0.405504]
[1763390167001,10.0,3169.6,3167.9,1.31249664]
[1763390167201,10.0,3169.6,3168.1,0.405504]
[1763390167432,10.0,3169.6,3168.0,0.96497454]
[1763390167648,0.4519,3168.8,3167.7,0.1611976]
[1763390168354,10.4519,3169.6,3167.8,0.90699264]
[1763390168505,10.0,3169.6,3168.2,0.05]
[1763390168705,10.0,3169.6,3168.3,0.405504]
[1763390168901,10.4519,3169.6,3167.8,0.405504]
[1763390169233,0.4519,3169.5,3168.0,0.405504]
[1763390169430,10.0,3169.6,3168.6,0.405504]
[1763390169631,10.0,3169.6,3169.0,0.405504]
[1763390169832,10.0,3169.6,3169.2,1.31249664]
[1763390170001,2.198694,3169.6,3169.4,0.405504]
[1763390170207,0.005,3171.9,3170.1,0.405504]
[1763390170513,0.005,3171.9,3170.7,0.405504]
[1763390170714,0.005,3172.9,3171.8,8.33724875]
[1763390170928,0.005,3176.9,3173.1,0.405504]
[1763390170929,0.4519,3175.8,3173.1,0.405504]
[1763390171139,0.005,3176.9,3174.4,0.90699264]
[1763390171359,0.005,3176.9,3173.6,0.405504]
[1763390171504,0.4519,3176.3,3174.9,0.90699264]
[1763390171703,0.4519,3176.3,3175.0,0.78631894]
[1763390172139,0.4519,3176.7,3175.0,0.78631894]
[1763390172338,0.4519,3176.2,3175.0,0.90699264]
[1763390172539,0.005,3176.9,3175.3,0.90699264]
[1763390172842,0.4519,3175.8,3174.6,6.95619671]
[1763390173056,0.005,3176.9,3176.1,0.05]
[1763390173253,0.005,3176.9,3174.7,0.70061967]
[1763390173417,0.005,3176.9,3174.1,0.90699264]
[1763390173418,0.1842,3175.6,3174.1,0.90699264]
[1763390173613,0.005,3176.9,3174.3,6.95619671]
[1763390173818,0.005,3176.9,3173.6,1.38399264]
[1763390173819,0.1842,3175.7,3174.9,0.90699264]
[1763390174118,0.005,3176.9,3175.4,6.95619671]
[1763390174330,0.005,3176.9,3176.2,0.90699264]
[1763390174653,0.005,3176.9,3176.1,6.95619671]
[1763390174654,0.005,3176.9,3174.7,0.05]
[1763390174814,0.005,3176.9,3174.5,6.95619671]
[1763390175016,0.4519,3176.8,3174.7,6.95619671]
[1763390175211,0.005,3176.9,3176.0,0.90699264]
[1763390175546,0.005,3176.9,3176.5,0.405504]
[1763390175727,0.4519,3176.8,3175.2,6.95619671]
[1763390176054,0.4519,3176.8,3175.3,0.90699264]
[1763390176258,0.005,3176.9,3175.9,0.90699264]
[1763390176416,0.005,3176.9,3174.5,9.60028375]
[1763390176417,0.005,3176.9,3176.6,0.90699264]
[1763390176750,0.4569,3176.9,3175.6,0.90699264]
[1763390176910,0.005,3176.9,3176.2,0.90699264]
[1763390177110,0.005,3176.9,3175.7,0.405504]
[1763390177111,0.005,3176.9,3176.7,6.95619671]
[1763390177345,0.005,3176.9,3176.3,0.90699264]
[1763390177539,0.005,3176.9,3176.6,6.95619671]
[1763390177740,0.005,3177.9,3176.8,9.4434651]
[1763390177968,0.005,3177.9,3177.8,7.36170071]
[1763390178170,0.005,3178.9,3177.8,7.36170071]
[1763390178171,0.005,3178.9,3177.9,1.31249664]
[1763390178349,0.4975,3178.8,3176.9,0.15]
[1763390178667,0.4975,3178.8,3178.0,0.90699264]
[1763390178866,0.4975,3178.8,3177.7,0.90699264]
[1763390179080,0.4975,3178.8,3176.5,6.95619671]
[1763390179392,0.4975,3178.8,3175.8,0.4823]
[1763390179393,0.1879,3176.6,3176.3,6.95619671]
[1763390179523,0.405504,3176.5,3173.6,3.15090497]
[1763390179727,0.03178451,3176.4,3173.2,10.10757096]
[1763390179961,0.4975,3176.3,3173.9,6.95619671]
[1763390180162,0.4975,3176.3,3174.6,6.95619671]
[1763390180362,0.1879,3177.2,3175.1,0.005]
[1763390180663,0.4975,3177.1,3176.1,0.005]
[1763390181462,0.4975,3177.7,3176.3,0.90699264]
[1763390181774,0.4975,3178.8,3177.7,0.90699264]
[1763390181970,0.005,3178.9,3178.3,0.90699264]
[1763390182130,0.4975,3178.8,3177.0,6.95619671]
[1763390182324,0.4975,3178.8,3177.1,0.90699264]
[1763390182566,0.005,3178.9,3178.3,0.90699264]
[1763390182772,0.4975,3178.8,3177.2,0.78631894]
[1763390182967,0.4975,3178.8,3176.4,6.95619671]
[1763390183268,0.4975,3178.6,3176.1,0.005]
[1763390183470,0.005,3178.9,3177.4,6.95619671]
[1763390183791,0.09083496,3180.6,3179.0,0.1]
[1763390183928,0.09083496,3180.6,3179.4,6.95619671]
[1763390184132,0.09083496,3180.6,3178.8,0.15]
[1763390184133,0.09083496,3180.6,3180.2,1.31249664]
[1763390184327,0.09083496,3180.6,3178.7,0.05]
[1763390184577,0.09083496,3180.6,3179.1,0.90699264]
[1763390184776,0.09083496,3180.6,3179.7,0.90699264]
[1763390184958,0.09083496,3180.6,3180.3,0.405504]
[1763390185127,0.09083496,3180.6,3179.1,0.15]
[1763390185481,0.1879,3182.4,3180.2,0.405504]
[1763390185689,0.1879,3182.4,3180.0,6.95619671]
[1763390185690,0.4975,3182.7,3180.9,0.405504]
[1763390185991,0.005,3182.9,3181.8,8.26869335]
[1763390186146,0.005,3182.9,3181.9,0.90699264]
[1763390186347,0.005,3182.9,3181.8,0.82686933]
[1763390186678,0.005,3182.9,3180.8,0.05]
[1763390186679,0.4975,3182.8,3180.6,6.95619671]
[1763390186881,0.4975,3182.8,3180.3,3.14435745]
[1763390186882,0.005,3182.9,3181.6,0.90699264]
[1763390187085,0.005,3182.9,3182.2,0.90699264]
[1763390187414,0.49507052,3184.2,3182.5,6.95619671]
[1763390187684,0.49507052,3184.2,3183.1,6.95619671]
[1763390187892,0.49507052,3184.2,3180.8,0.498]
[1763390187893,0.4886,3183.8,3180.8,0.498]
[1763390188072,0.4886,3183.8,3180.9,0.90699264]
[1763390188073,0.1977,3182.8,3180.9,0.90699264]
[1763390188272,0.4886,3183.8,3182.0,6.95619671]
[1763390188474,0.4886,3183.8,3182.1,0.93841842]
[1763390188675,0.00647052,3184.2,3183.3,0.90699264]
[1763390188984,0.00647052,3184.2,3181.8,0.05]
[1763390188985,0.00647052,3184.2,3182.9,6.95619671]
[1763390189293,0.00647052,3184.2,3183.0,0.69561967]
[1763390189497,0.00647052,3184.2,3183.1,0.90699264]
[1763390189699,0.00647052,3184.2,3183.7,0.90699264]
[1763390189852,0.00647052,3184.2,3183.6,0.90699264]
[1763390190047,0.00647052,3184.2,3182.6,0.405504]
[1763390190048,0.00647052,3184.2,3182.8,6.95619671]
[1763390190396,0.4886,3184.1,3182.8,0.90699264]
[1763390190893,0.00647052,3184.2,3183.4,1.31249664]
[1763390191194,0.1977,3182.8,3180.3,0.498]
[1763390191351,0.1977,3182.8,3181.2,6.95619671]
[1763390191552,0.4886,3183.3,3182.0,6.95619671]
[1763390191751,0.4886,3183.3,3181.3,1.0104718]
[1763390191988,0.4886,3183.3,3181.6,6.95619671]
[1763390192188,0.4886,3184.0,3182.3,6.95619671]
[1763390192389,0.00647052,3184.2,3181.1,6.29213338]
[1763390192390,0.4886,3183.8,3181.1,3.14856669]
[1763390192665,0.4886,3183.8,3181.4,6.95619671]
[1763390192864,0.43648851,3183.7,3181.1,0.005]
[1763390193081,0.1977,3181.2,3181.1,0.005]
[1763390193280,0.6863,3183.6,3181.1,0.005]
[1763390193506,0.4886,3183.5,3181.3,6.95619671]
[1763390193709,0.4886,3183.5,3181.9,6.95619671]
[1763390193921,0.4886,3183.5,3181.4,0.69561967]
[1763390194232,0.4886,3183.5,3181.1,0.005]
[1763390194372,0.1977,3181.2,3181.1,0.005]
[1763390194709,0.405504,3181.1,3179.1,0.005]
[1763390195020,0.4886,3181.1,3179.1,0.005]
[1763390195314,0.03098451,3181.0,3179.1,0.005]
[1763390195539,0.4886,3181.1,3179.1,0.005]
[1763390195670,0.4886,3181.0,3179.5,6.95619671]
[1763390195871,0.1977,3181.5,3179.6,0.90699264]
[1763390196109,0.4886,3181.4,3179.1,1.19911967]
[1763390196276,0.03098451,3181.3,3179.1,0.005]
[1763390196472,0.51958451,3181.4,3179.1,0.005]
[1763390196715,0.4886,3181.3,3179.3,6.95619671]
[1763390196909,0.4886,3181.3,3179.1,0.005]
[1763390197072,0.4886,3181.3,3179.1,6.96119671]
[1763390197269,0.4886,3181.3,3179.5,0.405504]
[1763390197504,0.4886,3181.3,3180.0,0.90699264]
[1763390197669,0.005,3181.9,3181.1,0.90699264]
[1763390197875,0.005,3181.9,3181.7,0.90699264]
[1763390198069,0.005,3181.9,3181.0,6.95619671]
[1763390198310,0.005,3181.9,3181.1,0.90699264]
[1763390198517,0.005,3181.9,3181.2,0.405504]
[1763390198683,0.005,3181.9,3181.0,0.3212]
[1763390198884,0.005,3181.9,3181.6,0.90699264]
[1763390199276,0.005,3181.9,3181.6,1.69331158]
[1763390199604,0.005,3182.9,3181.7,0.903504]
[1763390199806,0.005,3182.9,3182.6,0.90699264]
[1763390200101,0.4936,3183.9,3182.6,0.90699264]
[1763390200102,0.005,3183.9,3183.2,0.3212]
[1763390200302,0.005,3184.9,3183.9,0.90699264]
[1763390200621,0.005,3184.9,3184.3,0.405504]
[1763390200821,0.005,3184.9,3184.8,8.26869335]
[1763390200975,0.1977,3186.8,3185.0,0.405504]
[1763390200976,0.4886,3186.4,3185.0,0.405504]
[1763390201174,0.005,3186.9,3184.9,2.49896886]
[1763390201175,0.005,3186.9,3185.9,0.405504]
[1763390201376,0.4886,3186.8,3184.2,0.498]
[1763390201629,0.4886,3186.8,3185.4,0.90699264]
[1763390201932,0.005,3186.9,3186.7,6.95619671]
[1763390202078,0.005,3186.9,3186.8,1.60261231]
[1763390202276,0.005,3186.9,3186.7,0.90699264]
[1763390202481,0.4886,3189.3,3186.9,0.405504]
[1763390202707,0.4886,3189.3,3186.8,0.498]
[1763390202708,0.4886,3189.3,3187.8,7.86318935]
[1763390202891,0.4886,3188.8,3186.3,0.498]
[1763390203088,0.4936,3187.9,3186.1,0.90699264]
[1763390203313,0.4936,3187.9,3186.0,0.90699264]
[1763390203516,0.005,3187.9,3187.2,0.405504]
[1763390203715,0.005,3187.9,3186.2,6.95619671]
[1763390203916,0.4886,3187.8,3185.7,0.90699264]
[1763390204135,0.4886,3187.8,3185.6,10.09531437]
[1763390204136,0.4886,3187.8,3186.4,1.31249664]
[1763390204415,0.005,3187.9,3187.1,0.405504]
[1763390204820,0.4936,3187.9,3186.5,0.405504]
[1763390205121,0.4886,3187.8,3187.0,0.90699264]
[1763390205324,0.005,3187.9,3186.9,0.90699264]
[1763390205617,0.005,3187.9,3187.2,0.90699264]
[1763390205823,0.4936,3187.9,3186.4,0.405504]
[1763390206025,0.4936,3187.9,3186.9,0.90699264]
[1763390206174,0.0105,3189.9,3186.9,0.90699264]
[1763390206376,65.40787154,3190.0,3189.8,6.95619671]
[1763390206622,65.24401387,3190.0,3189.9,1.31249664]
[1763390206926,51.97401387,3190.0,3189.9,0.405504]
[1763390207075,49.31020317,3190.0,3189.9,8.65975619]
[1763390207274,0.005,3191.9,3189.9,0.90699264]
[1763390207511,0.005,3191.9,3190.6,6.95619671]
[1763390207722,0.005,3193.9,3189.8,0.05]
[1763390207906,0.4936,3192.9,3191.9,0.90699264]
[1763390208219,0.005,3193.9,3192.8,0.90699264]
[1763390208418,0.4936,3193.9,3192.8,0.90699264]
[1763390208574,0.4936,3193.9,3192.9,0.03131949]
[1763390208775,0.4936,3193.9,3193.0,0.90699264]
[1763390209097,0.005,3193.9,3193.0,0.90699264]
[1763390209427,0.005,3193.9,3191.9,1.31249664]
[1763390209428,0.4886,3193.6,3191.9,1.31249664]
[1763390209721,0.1977,3192.0,3191.0,6.95619671]
[1763390209904,0.51958451,3193.6,3191.3,6.95619671]
[1763390210216,0.4886,3193.6,3192.3,0.90699264]
[1763390210423,0.4886,3193.6,3191.4,0.03133421]
[1763390210424,0.4886,3193.6,3191.1,0.69561967]
[1763390210717,0.1977,3191.6,3189.1,6.96119671]
[1763390210878,0.1977,3191.6,3189.1,0.005]
[1763390211079,0.4886,3191.5,3189.1,0.005]
[1763390211324,0.43648851,3191.4,3188.1,0.005]
[1763390211479,0.405504,3191.4,3188.1,0.005]
[1763390211678,0.51958451,3191.3,3188.5,6.95619671]
[1763390211916,0.51958451,3191.3,3188.2,6.96925183]
[1763390211917,0.03098451,3191.2,3188.2,13.92544854]
[1763390212120,0.4886,3191.3,3188.2,13.92544854]
[1763390212347,0.1977,3191.6,3190.5,0.90699264]
[1763390212477,0.1977,3192.1,3191.1,6.95619671]
[1763390212775,0.1977,3192.1,3190.6,0.78631894]
[1763390212776,0.4886,3192.7,3191.8,0.90699264]
[1763390212984,0.005,3192.9,3192.6,0.90699264]
[1763390213230,0.005,3195.9,3192.6,0.90699264]
[1763390213231,0.005,3195.9,3194.1,0.15883576]
[1763390213390,0.005,3195.9,3195.8,7.86318935]
[1763390213590,0.005,3195.9,3195.8,8.26869335]
[1763390213790,0.005,3195.9,3195.8,1.31249664]
[1763390213989,0.4936,3195.9,3195.8,0.90699264]
[1763390214204,0.4936,3195.9,3194.5,0.05]
[1763390214424,0.4936,3195.9,3194.1,0.15383576]
[1763390215918,0.4936,3195.9,3193.4,6.95619671]
[1763390216119,0.4936,3195.9,3194.2,6.95619671]
[1763390216325,0.4936,3195.9,3194.4,0.405504]
[1763390216494,0.4936,3195.9,3194.4,6.95619671]
[1763390216694,0.005,3195.9,3194.6,1.31249664]
[1763390217016,0.48158235,3195.9,3194.6,1.31249664]
[1763390217183,0.48158235,3195.9,3194.6,0.90699264]
[1763390217382,0.005,3196.9,3194.7,0.405504]
[1763390217588,0.005,3196.9,3195.9,0.405504]
[1763390217846,0.005,3196.9,3195.9,1.31249664]
[1763390217997,0.005,3196.9,3196.2,0.405504]
[1763390218316,0.005,3196.9,3195.3,0.90699264]
[1763390218820,0.005,3196.9,3195.4,0.405504]
[1763390219140,0.005,3196.9,3195.9,0.90699264]
[1763390219282,0.4918,3196.9,3194.7,3.13018436]
[1763390219483,0.4918,3196.9,3194.1,6.95619671]
[1763390219797,0.1826,3194.2,3192.1,6.96119671]
[1763390219994,0.1826,3194.2,3193.1,3.13672908]
[1763390220233,0.4868,3194.1,3193.1,0.005]
[1763390220535,6.95619671,3193.8,3190.3,0.05]
[1763390220826,6.95619671,3193.8,3189.1,1.6598426]
[1763390220827,0.1826,3191.2,3189.1,0.005]
[1763390221124,0.4868,3194.0,3190.2,9.43089913]
[1763390221327,0.1826,3196.8,3192.4,6.95619671]
[1763390221621,0.4868,3196.7,3193.9,0.90699264]
[1763390222006,0.4868,3196.7,3193.1,0.405504]
[1763390222007,0.4868,3196.7,3193.3,6.95619671]
[1763390222191,0.4868,3196.7,3193.6,0.405504]
[1763390222379,0.005,3195.9,3194.2,0.90699264]
[1763390222580,0.005,3195.9,3194.4,0.405504]
[1763390222784,0.4868,3195.8,3192.7,0.05]
[1763390222985,0.4868,3195.8,3192.1,6.26546786]
[1763390223194,0.005,3193.9,3192.2,0.62654679]
[1763390223448,0.005,3193.9,3190.7,0.05]
[1763390223449,0.005,3193.9,3190.7,6.268217]
[1763390223594,0.005,3192.9,3190.6,10.09040344]
[1763390223794,0.005,3192.9,3188.9,0.4326]
[1763390223795,0.005,3192.9,3190.7,1.00904034]
[1763390224121,0.4868,3192.8,3190.1,6.96119671]
[1763390224323,0.4868,3192.8,3190.7,6.95619671]
[1763390224695,0.4868,3192.8,3190.1,0.005]
[1763390225203,1.39379264,3192.8,3190.1,0.005]
[1763390225407,6.95619671,3192.2,3189.1,0.005]
[1763390225651,1.32229894,3192.7,3189.9,6.95619671]
[1763390225852,0.4868,3192.6,3189.7,6.95619671]
[1763390226136,0.4868,3192.6,3190.1,6.95619671]
[1763390226439,0.4868,3192.6,3189.2,6.95619671]
[1763390226611,0.4868,3192.6,3189.1,0.005]
[1763390226943,0.4868,3192.6,3190.8,6.95619671]
[1763390227121,0.4868,3192.6,3191.7,0.405504]
[1763390227434,0.005,3192.9,3192.5,0.90699264]
[1763390227746,0.005,3195.9,3192.9,0.405504]
[1763390227747,0.4868,3195.7,3192.9,0.405504]
[1763390227911,0.4868,3195.7,3193.4,0.405504]
[1763390228100,0.4918,3194.9,3193.5,6.95619671]
[1763390228294,0.005,3194.9,3193.7,0.405504]
[1763390228504,0.4918,3194.9,3192.9,6.95619671]
[1763390228730,0.4918,3194.9,3190.8,1.53656374]
[1763390228731,0.4918,3194.9,3191.8,6.95619671]
[1763390228894,6.95619671,3194.7,3190.6,3.13418631]
[1763390229091,0.90699264,3194.6,3190.5,10.09049899]
[1763390229321,0.4868,3194.6,3189.8,0.05]
[1763390229518,6.95619671,3193.8,3189.5,6.95619671]
[1763390229726,0.4868,3194.5,3190.2,6.95619671]
[1763390229927,0.4868,3194.5,3189.1,3.14066427]
[1763390229928,0.4868,3194.4,3191.1,0.005]
[1763390230315,0.405504,3194.3,3191.1,0.005]
[1763390230521,0.1826,3191.2,3190.1,0.005]
[1763390230733,0.4868,3191.1,3190.1,0.005]
[1763390230939,0.1826,3191.3,3190.1,0.005]
[1763390231132,0.405504,3191.2,3189.1,0.005]
[1763390231545,0.1225,3189.2,3187.6,1.59542295]
[1763390231750,0.405504,3191.2,3187.6,1.59542295]
[1763390232418,0.405504,3191.2,3187.8,1.55138585]
[1763390232757,0.1826,3191.3,3188.2,1.56258446]
[1763390232959,0.4868,3191.1,3188.4,1.56454711]
[1763390233108,0.1826,3191.3,3188.4,1.56454711]
[1763390233314,0.1826,3191.3,3188.3,0.15685845]
[1763390233752,0.1826,3191.3,3188.1,0.006]
[1763390233958,0.005,3190.9,3188.1,0.006]
[1763390235067,0.005,3190.9,3188.2,0.4766]
[1763390235209,0.005,3190.9,3188.1,0.006]
[1763390235412,0.005,3190.9,3188.2,1.31249664]
[1763390235610,0.005,3190.9,3188.4,0.405504]
[1763390235817,0.005,3190.9,3187.7,0.1961]
[1763390236025,0.005,3190.9,3187.8,0.1848]
[1763390236256,0.005,3190.9,3188.0,8.24886529]
[1763390236458,0.4736,3190.9,3188.1,0.82488653]
[1763390236854,0.005,3190.9,3188.1,0.82488653]
[1763390237152,0.005,3190.9,3188.3,0.05]
[1763390237354,0.005,3190.9,3189.1,0.05]
[1763390237658,0.005,3190.9,3187.8,0.1848]
[1763390237815,0.005,3190.9,3189.0,0.05]
[1763390238016,0.005,3190.9,3189.5,0.05]
[1763390238238,0.005,3190.9,3188.1,5.73517183]
[1763390238473,0.005,3189.9,3188.4,8.24886529]
[1763390238631,0.005,3189.9,3188.5,0.405504]
[1763390239065,0.005,3189.9,3188.7,0.405504]
[1763390239267,0.005,3190.9,3188.9,0.95699264]
[1763390239470,0.005,3191.9,3190.9,0.405504]
[1763390239669,0.4686,3194.1,3191.1,1.31249664]
[1763390239870,0.4686,3195.0,3191.4,3.13342106]
[1763390240171,0.1974,3194.9,3191.5,1.31249664]
[1763390240357,0.005,3194.9,3192.1,1.31249664]
[1763390240531,0.005,3194.9,3192.8,0.590304]
[1763390240731,0.005,3194.9,3192.8,0.64996421]
[1763390240938,0.005,3194.9,3192.9,0.86424707]
[1763390241240,0.1974,3194.9,3191.6,1.25123388]
[1763390241545,0.4736,3193.9,3190.8,3.31881027]
[1763390241924,0.4736,3193.9,3189.2,5.73517183]
[1763390241925,0.4736,3193.9,3190.0,0.6781]
[1763390242174,0.4736,3193.9,3190.1,0.4983]
[1763390242632,0.4736,3193.9,3190.9,0.90699264]
[1763390242831,0.005,3193.9,3191.9,1.31249664]
[1763390243045,0.005,3194.9,3193.9,0.00440535]
[1763390243469,0.4686,3194.8,3193.9,0.00440535]
[1763390246146,0.005,3194.9,3194.1,0.405504]
[1763390246346,0.005,3194.9,3194.1,0.1810202]
[1763390246657,0.005,3194.9,3193.9,0.00440535]
[1763390246859,0.49958451,3194.8,3193.9,0.00440535]
[1763390247033,0.49958451,3194.8,3192.1,0.005]
[1763390247034,0.1924,3194.0,3192.1,0.005]
[1763390247435,0.4785,3194.4,3192.1,0.005]
[1763390247685,0.005,3194.9,3192.2,0.90699264]
[1763390247830,0.005,3194.9,3192.4,1.36249664]
[1763390248032,0.005,3194.9,3192.3,0.93951025]
[1763390248349,0.005,3194.9,3192.8,0.505504]
[1763390248533,0.005,3194.9,3193.5,1.36249664]
[1763390248740,0.005,3194.9,3193.6,0.5205]
[1763390248934,0.005,3195.9,3194.9,0.405504]
[1763390249136,0.005,3195.9,3195.1,0.410504]
[1763390249376,0.005,3198.9,3195.5,1.36249664]
[1763390249601,0.005,3198.9,3197.8,0.1726]
[1763390249766,0.005,3198.9,3197.9,1.33642425]
[1763390249985,0.005,3198.9,3197.9,8.050995]
[1763390250187,0.005,3202.9,3198.6,0.90699264]
[1763390250385,0.4785,3202.2,3198.7,1.32642425]
[1763390250720,0.005,3202.9,3200.1,0.1748]
[1763390250879,0.4785,3202.7,3200.2,0.405504]
[1763390251081,0.005,3202.9,3200.2,1.66362462]
[1763390251269,0.005,3202.9,3200.9,0.01]
[1763390251468,0.005,3202.9,3201.5,0.405504]
[1763390251707,0.005,3202.9,3201.4,0.05]
[1763390251708,0.005,3202.9,3201.6,0.4705]
[1763390251866,0.005,3202.9,3201.7,0.405504]
[1763390252066,0.005,3202.9,3201.9,0.405504]
[1763390252268,0.005,3202.9,3202.1,0.405504]